[Event "December 19 Late 2023"]
[Site "https://www.chess.com"]
[Date "2023.12.19"]
[Round "3"]
[White "Vargas, Mauricio"]
[Black "Cardozo Munar, Carlos Eduardo"]
[Result "1/2-1/2"]
[Board "182"]
[TimeControl "180+1"]
[WhiteFideId "4404572"]
[BlackFideId "4409477"]
[WhiteElo "1982"]
[BlackElo "2067"]
[WhiteTeam "COL"]
[BlackTeam "COL"]
[WhiteClock "0:00:02"]
[BlackClock "0:00:07"]

1. e4 {[%clk 0:03:00]}  e6 {[%clk 0:02:55]} 2. Nc3 {[%clk 0:02:58]}  d5 {[%clk 0:02:55]} 3. d3 {[%clk 0:02:58]}  Nf6 {[%clk 0:02:55]} 4. g3 {[%clk 0:02:58]}  c5 {[%clk 0:02:56]} 5. Bg2 {[%clk 0:02:58]}  Nc6 {[%clk 0:02:56]} 6. f4 {[%clk 0:02:54]}  d4 {[%clk 0:02:56]} 7. Nce2 {[%clk 0:02:49]}  e5 {[%clk 0:02:56]} 8. Nf3 {[%clk 0:02:45]}  Bd6 {[%clk 0:02:54]} 9. O-O {[%clk 0:02:44]}  Bg4 {[%clk 0:02:53]} 10. h3 {[%clk 0:02:37]}  Bxf3 {[%clk 0:02:27]} 11. Bxf3 {[%clk 0:02:37]}  Qc7 {[%clk 0:02:24]} 12. Bg2 {[%clk 0:02:35]}  O-O-O {[%clk 0:02:24]} 13. Rb1 {[%clk 0:02:32]}  h6 {[%clk 0:02:10]} 14. a3 {[%clk 0:02:32]}  exf4 {[%clk 0:02:11]} 15. Nxf4 {[%clk 0:02:29]}  g5 {[%clk 0:02:09]} 16. Nd5 {[%clk 0:02:17]}  Nxd5 {[%clk 0:02:09]} 17. exd5 {[%clk 0:02:17]}  Nb8 {[%clk 0:01:58]} 18. Qg4+ {[%clk 0:02:09]}  Qd7 {[%clk 0:01:50]} 19. Rxf7 {[%clk 0:02:05]}  Qxg4 {[%clk 0:01:49]} 20. hxg4 {[%clk 0:02:03]}  Bxg3 {[%clk 0:01:50]} 21. d6 {[%clk 0:01:57]}  Rd7 {[%clk 0:01:46]} 22. Rf6 {[%clk 0:01:46]}  Rxd6 {[%clk 0:01:42]} 23. Rf7 {[%clk 0:01:44]}  Rd7 {[%clk 0:01:09]} 24. Rf5 {[%clk 0:01:40]}  b6 {[%clk 0:01:05]} 25. b4 {[%clk 0:01:39]}  Re8 {[%clk 0:01:05]} 26. Bb2 {[%clk 0:01:32]}  Re5 {[%clk 0:01:01]} 27. Be4 {[%clk 0:01:29]}  Kc7 {[%clk 0:00:55]} 28. bxc5 {[%clk 0:01:28]}  bxc5 {[%clk 0:00:56]} 29. a4 {[%clk 0:01:24]}  Nc6 {[%clk 0:00:53]} 30. Ba3 {[%clk 0:01:21]}  c4 {[%clk 0:00:30]} 31. Rf6 {[%clk 0:00:55]}  Rxe4 {[%clk 0:00:26]} 32. dxe4 {[%clk 0:00:51]}  d3 {[%clk 0:00:26]} 33. cxd3 {[%clk 0:00:49]}  cxd3 {[%clk 0:00:27]} 34. Rc1 {[%clk 0:00:47]}  Bd6 {[%clk 0:00:26]} 35. Bxd6+ {[%clk 0:00:46]}  Rxd6 {[%clk 0:00:27]} 36. Rf7+ {[%clk 0:00:44]}  Kb6 {[%clk 0:00:27]} 37. Rd1 {[%clk 0:00:34]}  Ne5 {[%clk 0:00:27]} 38. Rf8 {[%clk 0:00:18]}  d2 {[%clk 0:00:27]} 39. Rb8+ {[%clk 0:00:16]}  Ka5 {[%clk 0:00:24]} 40. Rb2 {[%clk 0:00:16]}  Nxg4 {[%clk 0:00:19]} 41. Rbxd2 {[%clk 0:00:12]}  Re6 {[%clk 0:00:19]} 42. Rd4 {[%clk 0:00:11]}  Nf6 {[%clk 0:00:17]} 43. Rc1 {[%clk 0:00:10]}  Rxe4 {[%clk 0:00:17]} 44. Rc5+ {[%clk 0:00:09]}  Kb6 {[%clk 0:00:17]} 45. Rb5+ {[%clk 0:00:08]}  Kc6 {[%clk 0:00:17]} 46. Rxe4 {[%clk 0:00:07]}  Nxe4 {[%clk 0:00:18]} 47. Kg2 {[%clk 0:00:07]}  Nc5 {[%clk 0:00:16]} 48. Rb4 {[%clk 0:00:05]}  h5 {[%clk 0:00:13]} 49. a5 {[%clk 0:00:04]}  g4 {[%clk 0:00:10]} 50. Kg3 {[%clk 0:00:04]}  Nd3 {[%clk 0:00:09]} 51. Rc4+ {[%clk 0:00:03]}  Kb5 {[%clk 0:00:09]} 52. Rd4 {[%clk 0:00:02]}  Nc5 {[%clk 0:00:09]} 53. Rd5 {[%clk 0:00:02]}  Kc4 {[%clk 0:00:08]} 54. Rxh5 {[%clk 0:00:02]}  Nb3 {[%clk 0:00:05]} 55. Kxg4 {[%clk 0:00:02]}  Kb4 {[%clk 0:00:06]} 56. a6 {[%clk 0:00:01]}  Nc5 {[%clk 0:00:05]} 57. Rh6 {[%clk 0:00:01]}  Kb5 {[%clk 0:00:05]} 58. Rh7 {[%clk 0:00:01]}  Kxa6 {[%clk 0:00:05]} 59. Rh6+ {[%clk 0:00:01]}  Kb5 {[%clk 0:00:06]} 60. Rh5 {[%clk 0:00:02]}  a5 {[%clk 0:00:06]} 61. Kf3 {[%clk 0:00:02]}  Kb4 {[%clk 0:00:07]} 62. Ke2 {[%clk 0:00:02]}  a4 {[%clk 0:00:07]} 63. Kd1 {[%clk 0:00:03]}  Nd3 {[%clk 0:00:06]} 64. Kc2 {[%clk 0:00:04]}  Ne1+ {[%clk 0:00:05]} 65. Kb1 {[%clk 0:00:04]}  Nf3 {[%clk 0:00:05]} 66. Rf5 {[%clk 0:00:04]}  Nd2+ {[%clk 0:00:04]} 67. Ka2 {[%clk 0:00:03]}  Nb3 {[%clk 0:00:04]} 68. Rf4+ {[%clk 0:00:04]}  Kb5 {[%clk 0:00:04]} 69. Ka3 {[%clk 0:00:04]}  Nc5 {[%clk 0:00:04]} 70. Rf5 {[%clk 0:00:03]}  Kc4 {[%clk 0:00:05]} 71. Rh5 {[%clk 0:00:02]}  Kb5 {[%clk 0:00:05]} 72. Rg5 {[%clk 0:00:02]}  Kc4 {[%clk 0:00:06]} 73. Rh5 {[%clk 0:00:02]}  Kb5 {[%clk 0:00:07]} 74. Rg5 {[%clk 0:00:02]}  Kc4 {[%clk 0:00:07]} 75. Rg4+ {[%clk 0:00:02]}  Kc3 {[%clk 0:00:07]} 76. Rg3+ {[%clk 0:00:02]}  Kc4 {[%clk 0:00:07]} 77. Rg4+ {[%clk 0:00:02]}  Kb5 {[%clk 0:00:07]} 78. Rg5 {[%clk 0:00:02]} 1/2-1/2

[Event "December 19 Late 2023"]
[Site "https://www.chess.com"]
[Date "2023.12.19"]
[Round "4"]
[White "Niemann, Hans Moke"]
[Black "Zhigalko, Sergei"]
[Result "1/2-1/2"]
[Board "2"]
[TimeControl "180+1"]
[WhiteFideId "2093596"]
[BlackFideId "13502956"]
[WhiteElo "2614"]
[BlackElo "2616"]
[WhiteTeam "USA"]
[BlackTeam "BLR"]
[WhiteClock "0:00:54"]
[BlackClock "0:01:03"]

1. d4 {[%clk 0:03:00]}  Nf6 {[%clk 0:03:00]} 2. c4 {[%clk 0:03:01]}  e6 {[%clk 0:03:00]} 3. Nf3 {[%clk 0:03:01]}  b6 {[%clk 0:03:00]} 4. g3 {[%clk 0:03:01]}  Ba6 {[%clk 0:03:00]} 5. b3 {[%clk 0:03:00]}  Bb4+ {[%clk 0:03:00]} 6. Bd2 {[%clk 0:02:59]}  Be7 {[%clk 0:03:01]} 7. Bg2 {[%clk 0:02:59]}  c6 {[%clk 0:03:01]} 8. Bc3 {[%clk 0:02:54]}  d5 {[%clk 0:03:01]} 9. Nbd2 {[%clk 0:02:55]}  Nbd7 {[%clk 0:03:01]} 10. O-O {[%clk 0:02:56]}  O-O {[%clk 0:03:01]} 11. Re1 {[%clk 0:02:56]}  c5 {[%clk 0:03:01]} 12. Rc1 {[%clk 0:02:55]}  Rc8 {[%clk 0:02:54]} 13. e3 {[%clk 0:02:53]}  h6 {[%clk 0:02:50]} 14. Qc2 {[%clk 0:02:53]}  cxd4 {[%clk 0:02:44]} 15. Nxd4 {[%clk 0:02:47]}  Ba3 {[%clk 0:02:43]} 16. Rcd1 {[%clk 0:02:45]}  Qe7 {[%clk 0:02:24]} 17. Qb1 {[%clk 0:02:39]}  Rfd8 {[%clk 0:02:20]} 18. Qa1 {[%clk 0:02:36]}  Nc5 {[%clk 0:01:59]} 19. Nb1 {[%clk 0:02:24]}  Nce4 {[%clk 0:01:59]} 20. cxd5 {[%clk 0:01:58]}  Nxc3 {[%clk 0:01:30]} 21. Nxc3 {[%clk 0:01:58]}  exd5 {[%clk 0:01:27]} 22. Nc2 {[%clk 0:01:17]}  Bd6 {[%clk 0:01:14]} 23. Nd4 {[%clk 0:01:00]}  Ba3 {[%clk 0:01:03]} 24. Nc2 {[%clk 0:01:00]}  Bd6 {[%clk 0:01:04]} 25. Nd4 {[%clk 0:00:54]}  Ba3 {[%clk 0:01:03]} 1/2-1/2

[Event "December 19 Late 2023"]
[Site "https://www.chess.com"]
[Date "2023.12.19"]
[Round "4"]
[White "Melkumyan, Hrant"]
[Black "Duda, Jan-Krzysztof"]
[Result "1/2-1/2"]
[Board "3"]
[TimeControl "180+1"]
[WhiteFideId "13302485"]
[BlackFideId "1170546"]
[WhiteElo "2604"]
[BlackElo "2775"]
[WhiteTeam "ARM"]
[BlackTeam "POL"]
[WhiteClock "0:00:03"]
[BlackClock "0:00:03"]

1. Nf3 {[%clk 0:02:55]}  Nf6 {[%clk 0:02:59]} 2. c4 {[%clk 0:02:55]}  e6 {[%clk 0:02:58]} 3. g3 {[%clk 0:02:53]}  d5 {[%clk 0:02:47]} 4. Bg2 {[%clk 0:02:53]}  Be7 {[%clk 0:02:44]} 5. O-O {[%clk 0:02:53]}  O-O {[%clk 0:02:45]} 6. b3 {[%clk 0:02:54]}  a5 {[%clk 0:02:43]} 7. Nc3 {[%clk 0:02:46]}  c6 {[%clk 0:02:38]} 8. d4 {[%clk 0:02:42]}  Nbd7 {[%clk 0:02:35]} 9. Bb2 {[%clk 0:02:42]}  b6 {[%clk 0:02:26]} 10. Nd2 {[%clk 0:02:42]}  Ba6 {[%clk 0:02:24]} 11. a4 {[%clk 0:02:30]}  Rc8 {[%clk 0:02:17]} 12. Re1 {[%clk 0:02:23]}  Bb4 {[%clk 0:02:09]} 13. e4 {[%clk 0:02:16]}  c5 {[%clk 0:01:49]} 14. exd5 {[%clk 0:02:07]}  cxd4 {[%clk 0:01:45]} 15. Nb5 {[%clk 0:01:54]}  Bxb5 {[%clk 0:01:30]} 16. cxb5 {[%clk 0:01:45]}  Nxd5 {[%clk 0:01:12]} 17. Bxd5 {[%clk 0:01:45]}  exd5 {[%clk 0:01:09]} 18. Bxd4 {[%clk 0:01:45]}  Bc3 {[%clk 0:01:02]} 19. Bxc3 {[%clk 0:01:37]}  Rxc3 {[%clk 0:01:03]} 20. Ra2 {[%clk 0:01:32]}  Nc5 {[%clk 0:01:01]} 21. Rc2 {[%clk 0:01:25]}  Rd3 {[%clk 0:00:56]} 22. Qe2 {[%clk 0:01:20]}  Rd4 {[%clk 0:00:31]} 23. Qe3 {[%clk 0:01:20]}  Rb4 {[%clk 0:00:30]} 24. Rxc5 {[%clk 0:01:14]}  d4 {[%clk 0:00:20]} 25. Qe5 {[%clk 0:01:05]}  bxc5 {[%clk 0:00:21]} 26. Qxc5 {[%clk 0:01:06]}  d3 {[%clk 0:00:21]} 27. Re3 {[%clk 0:01:03]}  Re8 {[%clk 0:00:21]} 28. Qd5 {[%clk 0:00:48]}  h6 {[%clk 0:00:16]} 29. Rxd3 {[%clk 0:00:44]}  Qf6 {[%clk 0:00:10]} 30. Rf3 {[%clk 0:00:38]}  Rd8 {[%clk 0:00:10]} 31. Qb7 {[%clk 0:00:25]}  Qe6 {[%clk 0:00:03]} 32. Nc4 {[%clk 0:00:22]}  g5 {[%clk 0:00:03]} 33. Kg2 {[%clk 0:00:22]}  h5 {[%clk 0:00:03]} 34. h3 {[%clk 0:00:21]}  g4 {[%clk 0:00:03]} 35. hxg4 {[%clk 0:00:21]}  hxg4 {[%clk 0:00:03]} 36. Rf4 {[%clk 0:00:22]}  f5 {[%clk 0:00:03]} 37. Qc6 {[%clk 0:00:17]}  Qd5+ {[%clk 0:00:03]} 38. Qxd5+ {[%clk 0:00:16]}  Rxd5 {[%clk 0:00:03]} 39. Ne3 {[%clk 0:00:15]}  Rxf4 {[%clk 0:00:03]} 40. Nxd5 {[%clk 0:00:16]}  Rd4 {[%clk 0:00:02]} 41. Ne7+ {[%clk 0:00:16]}  Kf7 {[%clk 0:00:02]} 42. Nxf5 {[%clk 0:00:17]}  Rb4 {[%clk 0:00:03]} 43. Nd6+ {[%clk 0:00:16]}  Ke6 {[%clk 0:00:03]} 44. Nc4 {[%clk 0:00:16]}  Rxb3 {[%clk 0:00:03]} 45. Nxa5 {[%clk 0:00:17]}  Rb4 {[%clk 0:00:04]} 46. Nb7 {[%clk 0:00:17]}  Kd5 {[%clk 0:00:03]} 47. Na5 {[%clk 0:00:10]}  Rxa4 {[%clk 0:00:03]} 48. Nc6 {[%clk 0:00:10]}  Kc5 {[%clk 0:00:02]} 49. Ne5 {[%clk 0:00:07]}  Re4 {[%clk 0:00:02]} 50. Nd3+ {[%clk 0:00:05]}  Kc4 {[%clk 0:00:02]} 51. Nf4 {[%clk 0:00:04]}  Re5 {[%clk 0:00:02]} 52. f3 {[%clk 0:00:04]}  gxf3+ {[%clk 0:00:02]} 53. Kxf3 {[%clk 0:00:05]}  Rxb5 {[%clk 0:00:01]} 54. Ng2 {[%clk 0:00:05]}  Kd4 {[%clk 0:00:02]} 55. Nf4 {[%clk 0:00:05]}  Ke5 {[%clk 0:00:02]} 56. Kg4 {[%clk 0:00:05]}  Rb4 {[%clk 0:00:02]} 57. Kg5 {[%clk 0:00:05]}  Ke4 {[%clk 0:00:03]} 58. Kg4 {[%clk 0:00:05]}  Rb8 {[%clk 0:00:03]} 59. Ne6 {[%clk 0:00:04]}  Rg8+ {[%clk 0:00:03]} 60. Ng5+ {[%clk 0:00:02]}  Ke5 {[%clk 0:00:03]} 61. Kh5 {[%clk 0:00:02]}  Kf5 {[%clk 0:00:04]} 62. g4+ {[%clk 0:00:01]}  Ke5 {[%clk 0:00:04]} 63. Nh7 {[%clk 0:00:02]}  Rh8 {[%clk 0:00:03]} 64. Kh6 {[%clk 0:00:02]}  Kf4 {[%clk 0:00:02]} 65. g5 {[%clk 0:00:03]}  Kf5 {[%clk 0:00:02]} 66. g6 {[%clk 0:00:03]}  Rg8 {[%clk 0:00:02]} 67. g7 {[%clk 0:00:03]}  Rxg7 {[%clk 0:00:03]} 68. Kxg7 {[%clk 0:00:03]} 1/2-1/2

[Event "December 19 Late 2023"]
[Site "https://www.chess.com"]
[Date "2023.12.19"]
[Round "4"]
[White "Popov, Konstantin"]
[Black "Bluebaum, Matthias"]
[Result "0-1"]
[Board "4"]
[TimeControl "180+1"]
[WhiteFideId "34137910"]
[BlackFideId "24651516"]
[WhiteElo "2340"]
[BlackElo "2621"]
[WhiteTeam "FID"]
[BlackTeam "GER"]
[WhiteClock "0:00:00"]
[BlackClock "0:00:51"]

1. e4 {[%clk 0:02:59]}  e6 {[%clk 0:03:00]} 2. d4 {[%clk 0:02:59]}  d5 {[%clk 0:03:00]} 3. Nc3 {[%clk 0:02:59]}  Nf6 {[%clk 0:03:01]} 4. Bg5 {[%clk 0:02:57]}  dxe4 {[%clk 0:03:01]} 5. Nxe4 {[%clk 0:02:57]}  Be7 {[%clk 0:03:01]} 6. Nxf6+ {[%clk 0:02:53]}  Bxf6 {[%clk 0:03:01]} 7. Bxf6 {[%clk 0:02:52]}  Qxf6 {[%clk 0:03:02]} 8. Nf3 {[%clk 0:02:53]}  O-O {[%clk 0:03:03]} 9. Qd3 {[%clk 0:02:53]}  Bd7 {[%clk 0:03:04]} 10. O-O-O {[%clk 0:02:48]}  Rd8 {[%clk 0:03:04]} 11. Ne5 {[%clk 0:02:44]}  Nc6 {[%clk 0:03:03]} 12. Qe3 {[%clk 0:02:43]}  Nb4 {[%clk 0:03:03]} 13. a3 {[%clk 0:02:41]}  Nd5 {[%clk 0:03:03]} 14. Qg3 {[%clk 0:02:39]}  Rac8 {[%clk 0:03:00]} 15. Rd3 {[%clk 0:02:21]}  Be8 {[%clk 0:02:39]} 16. Rf3 {[%clk 0:02:18]}  Qh6+ {[%clk 0:02:39]} 17. Kb1 {[%clk 0:02:18]}  c5 {[%clk 0:02:40]} 18. Ng4 {[%clk 0:02:14]}  Qd2 {[%clk 0:02:37]} 19. Bd3 {[%clk 0:01:53]}  f5 {[%clk 0:02:21]} 20. Qh4 {[%clk 0:01:33]}  c4 {[%clk 0:02:08]} 21. Rh3 {[%clk 0:00:46]}  cxd3 {[%clk 0:01:53]} 22. Qxh7+ {[%clk 0:00:45]}  Kf8 {[%clk 0:01:53]} 23. Qh8+ {[%clk 0:00:45]}  Ke7 {[%clk 0:01:54]} 24. Qxg7+ {[%clk 0:00:44]}  Bf7 {[%clk 0:01:54]} 25. Ne5 {[%clk 0:00:33]}  dxc2+ {[%clk 0:01:46]} 26. Ka2 {[%clk 0:00:33]}  Nc3+ {[%clk 0:01:19]} 27. Rxc3 {[%clk 0:00:32]}  Rxc3 {[%clk 0:01:20]} 28. Qxf7+ {[%clk 0:00:31]}  Kd6 {[%clk 0:01:21]} 29. Qxb7 {[%clk 0:00:20]}  Rc7 {[%clk 0:01:11]} 30. Qa6+ {[%clk 0:00:14]}  Ke7 {[%clk 0:01:11]} 31. Nc6+ {[%clk 0:00:15]}  Rxc6 {[%clk 0:00:57]} 32. Qxc6 {[%clk 0:00:16]}  Rxd4 {[%clk 0:00:57]} 33. h4 {[%clk 0:00:15]}  Qd1 {[%clk 0:00:51]} 34. Qc5+ {[%clk 0:00:10]}  Kf7 {[%clk 0:00:51]} 35. Qc7+ {[%clk 0:00:05]}  Rd7 {[%clk 0:00:51]} 36. Rxd1 {[%clk 0:00:00]}  cxd1=Q {[%clk 0:00:51]} 0-1

[Event "December 19 Late 2023"]
[Site "https://www.chess.com"]
[Date "2023.12.19"]
[Round "4"]
[White "Keymer, Vincent"]
[Black "Szpar, Milosz"]
[Result "1-0"]
[Board "5"]
[TimeControl "180+1"]
[WhiteFideId "12940690"]
[BlackFideId "1184989"]
[WhiteElo "2629"]
[BlackElo "2446"]
[WhiteTeam "GER"]
[BlackTeam "POL"]
[WhiteClock "0:00:46"]
[BlackClock "0:00:00"]

1. Nf3 {[%clk 0:02:56]}  d5 {[%clk 0:03:00]} 2. e3 {[%clk 0:02:54]}  Nf6 {[%clk 0:02:58]} 3. c4 {[%clk 0:02:54]}  e6 {[%clk 0:02:58]} 4. Nc3 {[%clk 0:02:55]}  Bd6 {[%clk 0:02:51]} 5. b3 {[%clk 0:02:54]}  O-O {[%clk 0:02:51]} 6. Bb2 {[%clk 0:02:55]}  c6 {[%clk 0:02:45]} 7. Be2 {[%clk 0:02:54]}  b6 {[%clk 0:02:44]} 8. Qc2 {[%clk 0:02:45]}  Bb7 {[%clk 0:02:43]} 9. g4 {[%clk 0:02:45]}  Na6 {[%clk 0:02:40]} 10. g5 {[%clk 0:02:42]}  Nd7 {[%clk 0:02:41]} 11. a3 {[%clk 0:02:36]}  Qe7 {[%clk 0:02:38]} 12. Rg1 {[%clk 0:02:31]}  Nc7 {[%clk 0:02:34]} 13. h4 {[%clk 0:02:27]}  e5 {[%clk 0:02:34]} 14. h5 {[%clk 0:02:27]}  f5 {[%clk 0:02:30]} 15. gxf6 {[%clk 0:02:26]}  Nxf6 {[%clk 0:02:19]} 16. Nh4 {[%clk 0:02:19]}  Bc8 {[%clk 0:01:31]} 17. h6 {[%clk 0:02:06]}  Rf7 {[%clk 0:01:23]} 18. hxg7 {[%clk 0:01:52]}  Nce8 {[%clk 0:01:05]} 19. Nf3 {[%clk 0:01:23]}  Rxg7 {[%clk 0:00:58]} 20. O-O-O {[%clk 0:01:22]}  Bxa3 {[%clk 0:00:45]} 21. Rxg7+ {[%clk 0:01:21]}  Nxg7 {[%clk 0:00:45]} 22. Rg1 {[%clk 0:01:22]}  Kf8 {[%clk 0:00:41]} 23. Rg5 {[%clk 0:01:15]}  Bd6 {[%clk 0:00:35]} 24. cxd5 {[%clk 0:01:08]}  h6 {[%clk 0:00:35]} 25. Rxg7 {[%clk 0:01:00]}  Qxg7 {[%clk 0:00:25]} 26. dxc6 {[%clk 0:01:01]}  Bg4 {[%clk 0:00:23]} 27. Nb5 {[%clk 0:00:57]}  e4 {[%clk 0:00:06]} 28. Nxd6 {[%clk 0:00:55]}  exf3 {[%clk 0:00:05]} 29. Bc4 {[%clk 0:00:52]}  Rd8 {[%clk 0:00:00]} 30. Ba3 {[%clk 0:00:46]} 1-0

[Event "December 19 Late 2023"]
[Site "https://www.chess.com"]
[Date "2023.12.19"]
[Round "4"]
[White "Van Foreest, Jorden"]
[Black "Mahdavi, Reza"]
[Result "0-1"]
[Board "6"]
[TimeControl "180+1"]
[WhiteFideId "1039784"]
[BlackFideId "12595926"]
[WhiteElo "2664"]
[BlackElo "2426"]
[WhiteTeam "NED"]
[BlackTeam "IRI"]
[WhiteClock "0:00:12"]
[BlackClock "0:00:42"]

1. e4 {[%clk 0:02:59]}  c5 {[%clk 0:02:59]} 2. Nf3 {[%clk 0:02:59]}  d6 {[%clk 0:02:59]} 3. d4 {[%clk 0:02:59]}  cxd4 {[%clk 0:03:00]} 4. Nxd4 {[%clk 0:03:00]}  Nf6 {[%clk 0:03:01]} 5. Bd3 {[%clk 0:02:59]}  g6 {[%clk 0:02:59]} 6. c4 {[%clk 0:02:59]}  Bg7 {[%clk 0:03:00]} 7. Nc3 {[%clk 0:02:58]}  Nc6 {[%clk 0:03:00]} 8. Nde2 {[%clk 0:02:51]}  O-O {[%clk 0:03:00]} 9. O-O {[%clk 0:02:51]}  Be6 {[%clk 0:02:58]} 10. b3 {[%clk 0:02:51]}  Rc8 {[%clk 0:02:56]} 11. Bb2 {[%clk 0:02:51]}  a6 {[%clk 0:02:56]} 12. Rc1 {[%clk 0:02:50]}  Nd7 {[%clk 0:02:55]} 13. Qd2 {[%clk 0:02:48]}  Nc5 {[%clk 0:02:51]} 14. Bb1 {[%clk 0:02:48]}  Qa5 {[%clk 0:02:39]} 15. Rfd1 {[%clk 0:02:47]}  b5 {[%clk 0:02:39]} 16. cxb5 {[%clk 0:02:46]}  axb5 {[%clk 0:02:40]} 17. Nf4 {[%clk 0:02:32]}  Bh6 {[%clk 0:02:27]} 18. Kh1 {[%clk 0:02:09]}  Rfe8 {[%clk 0:02:23]} 19. g3 {[%clk 0:02:08]}  Bg4 {[%clk 0:02:20]} 20. Re1 {[%clk 0:01:36]}  Ne5 {[%clk 0:02:11]} 21. Re3 {[%clk 0:01:05]}  Ne6 {[%clk 0:01:46]} 22. Nfd5 {[%clk 0:01:00]}  Bf3+ {[%clk 0:01:36]} 23. Kg1 {[%clk 0:01:00]}  b4 {[%clk 0:01:32]} 24. Na4 {[%clk 0:00:59]}  Rxc1+ {[%clk 0:01:32]} 25. Qxc1 {[%clk 0:01:00]}  Bxe3 {[%clk 0:01:29]} 26. Qxe3 {[%clk 0:01:01]}  Bh5 {[%clk 0:01:21]} 27. h3 {[%clk 0:00:53]}  Nc4 {[%clk 0:00:43]} 28. bxc4 {[%clk 0:00:45]}  Qxa4 {[%clk 0:00:43]} 29. Kg2 {[%clk 0:00:32]}  Qd1 {[%clk 0:00:43]} 30. Bd3 {[%clk 0:00:30]}  Nc5 {[%clk 0:00:43]} 31. Qd4 {[%clk 0:00:12]}  Bf3+ {[%clk 0:00:42]} 0-1

[Event "December 19 Late 2023"]
[Site "https://www.chess.com"]
[Date "2023.12.19"]
[Round "4"]
[White "Sarana, Alexey"]
[Black "Beerdsen, Thomas"]
[Result "1-0"]
[Board "7"]
[TimeControl "180+1"]
[WhiteFideId "24133795"]
[BlackFideId "1030108"]
[WhiteElo "2707"]
[BlackElo "2550"]
[WhiteTeam "SRB"]
[BlackTeam "NED"]
[WhiteClock "0:00:06"]
[BlackClock "0:00:01"]

1. d4 {[%clk 0:03:00]}  Nf6 {[%clk 0:02:59]} 2. c4 {[%clk 0:03:01]}  a6 {[%clk 0:03:00]} 3. Nf3 {[%clk 0:02:59]}  b5 {[%clk 0:03:00]} 4. e3 {[%clk 0:03:00]}  bxc4 {[%clk 0:02:59]} 5. Bxc4 {[%clk 0:03:01]}  e6 {[%clk 0:03:00]} 6. O-O {[%clk 0:02:59]}  c5 {[%clk 0:03:00]} 7. d5 {[%clk 0:02:51]}  exd5 {[%clk 0:02:57]} 8. Bxd5 {[%clk 0:02:49]}  Nxd5 {[%clk 0:02:44]} 9. Qxd5 {[%clk 0:02:50]}  Nc6 {[%clk 0:02:44]} 10. Ne5 {[%clk 0:02:37]}  Qf6 {[%clk 0:02:43]} 11. Nxc6 {[%clk 0:02:37]}  dxc6 {[%clk 0:02:44]} 12. Qe4+ {[%clk 0:02:37]}  Be7 {[%clk 0:02:44]} 13. Bd2 {[%clk 0:02:35]}  Bf5 {[%clk 0:02:37]} 14. Qf3 {[%clk 0:02:35]}  O-O {[%clk 0:02:33]} 15. Bc3 {[%clk 0:02:35]}  Qg6 {[%clk 0:02:32]} 16. Nd2 {[%clk 0:02:36]}  Bd6 {[%clk 0:02:28]} 17. e4 {[%clk 0:02:30]}  Bg4 {[%clk 0:02:27]} 18. Qe3 {[%clk 0:02:31]}  Rae8 {[%clk 0:02:23]} 19. e5 {[%clk 0:02:26]}  f6 {[%clk 0:02:15]} 20. f4 {[%clk 0:02:27]}  fxe5 {[%clk 0:02:09]} 21. fxe5 {[%clk 0:02:28]}  Rxf1+ {[%clk 0:02:08]} 22. Rxf1 {[%clk 0:02:28]}  Bf8 {[%clk 0:02:05]} 23. Ne4 {[%clk 0:02:19]}  Be6 {[%clk 0:01:58]} 24. a3 {[%clk 0:02:19]}  Bd5 {[%clk 0:01:57]} 25. Ng3 {[%clk 0:02:19]}  c4 {[%clk 0:01:56]} 26. h3 {[%clk 0:02:18]}  h5 {[%clk 0:01:53]} 27. Rf2 {[%clk 0:02:04]}  Kh7 {[%clk 0:01:28]} 28. Kh2 {[%clk 0:02:02]}  Kg8 {[%clk 0:01:22]} 29. Nf5 {[%clk 0:01:59]}  Be7 {[%clk 0:01:10]} 30. Qf4 {[%clk 0:01:13]}  Bc5 {[%clk 0:00:55]} 31. Bd4 {[%clk 0:01:13]}  Bf8 {[%clk 0:00:42]} 32. Nh4 {[%clk 0:01:04]}  Qe4 {[%clk 0:00:37]} 33. Nf5 {[%clk 0:00:56]}  Qxf4+ {[%clk 0:00:28]} 34. Rxf4 {[%clk 0:00:57]}  Rb8 {[%clk 0:00:28]} 35. h4 {[%clk 0:00:39]}  Rb3 {[%clk 0:00:27]} 36. Nd6 {[%clk 0:00:26]}  Rd3 {[%clk 0:00:22]} 37. Bc3 {[%clk 0:00:26]}  Re3 {[%clk 0:00:20]} 38. Rf2 {[%clk 0:00:23]}  Be6 {[%clk 0:00:15]} 39. g3 {[%clk 0:00:22]}  Be7 {[%clk 0:00:13]} 40. Nf5 {[%clk 0:00:22]}  Bxf5 {[%clk 0:00:13]} 41. Rxf5 {[%clk 0:00:23]}  Bxa3 {[%clk 0:00:13]} 42. Rf2 {[%clk 0:00:14]}  Be7 {[%clk 0:00:10]} 43. Rf4 {[%clk 0:00:14]}  a5 {[%clk 0:00:04]} 44. Rxc4 {[%clk 0:00:15]}  Bb4 {[%clk 0:00:05]} 45. Bxb4 {[%clk 0:00:08]}  axb4 {[%clk 0:00:06]} 46. Rxb4 {[%clk 0:00:03]}  Rxe5 {[%clk 0:00:06]} 47. Kg2 {[%clk 0:00:03]}  c5 {[%clk 0:00:06]} 48. Rb5 {[%clk 0:00:03]}  g6 {[%clk 0:00:04]} 49. Kf3 {[%clk 0:00:03]}  Kf7 {[%clk 0:00:04]} 50. Kf4 {[%clk 0:00:04]}  Re2 {[%clk 0:00:03]} 51. b3 {[%clk 0:00:04]}  Rb2 {[%clk 0:00:03]} 52. Kg5 {[%clk 0:00:04]}  Rg2 {[%clk 0:00:02]} 53. Rb7+ {[%clk 0:00:04]}  Kf8 {[%clk 0:00:01]} 54. Kf6 {[%clk 0:00:04]}  Ke8 {[%clk 0:00:01]} 55. Re7+ {[%clk 0:00:04]}  Kd8 {[%clk 0:00:01]} 56. Re3 {[%clk 0:00:05]}  Kc7 {[%clk 0:00:01]} 57. Kxg6 {[%clk 0:00:05]}  Kd6 {[%clk 0:00:02]} 58. Kxh5 {[%clk 0:00:06]}  Rxg3 {[%clk 0:00:01]} 59. Rxg3 {[%clk 0:00:06]} 1-0